fUSD/lending_fUSD_20260509
["ID","MTS","AMOUNT","RATE_DAILY","PERIOD"]
[421876535,1778262642000,-500.0,0.00018773,2]
[421876477,1778262642000,-1014.19000718,0.00018637,2]
[421876512,1778262642000,-500.0,0.00018773,2]
[421876474,1778262642000,-1731.9,0.0001841,2]
[421876453,1778262642000,-736.0,0.00017833,2]
[421876471,1778262642000,-156.52,0.0001832,2]
[421876432,1778262642000,-4444.96899211,0.00017767,2]
[421876434,1778262642000,-150.0,0.00017767,2]
[421876444,1778262642000,-6360.97468111,0.00017774,2]
[421876436,1778262642000,-10581.34295062,0.00017767,2]
[421876440,1778262642000,-2505.36737428,0.00017767,2]
[421876446,1778262642000,-500.0,0.00017797,2]
[421876448,1778262642000,-501.24,0.000178,2]
[421876438,1778262642000,-150.0,0.00017767,2]
[421876442,1778262642000,-1407.74053889,0.00017774,2]
[421876541,1778262642000,-298.88065623,0.00018773,2]
[421876450,1778262642000,-334.16,0.000178,2]
[421876454,1778262642000,-179.71,0.00017998,2]
[421876456,1778262642000,-197.84095358,0.00018,2]
[421876459,1778262642000,-350.0,0.00018,2]
[421876463,1778262642000,-500.0,0.00018089,2]
[421876465,1778262642000,-168.36,0.000182,2]
[421876461,1778262642000,-168.84,0.00018069,2]
[421876467,1778262642000,-273.0,0.000182,2]
[421876468,1778262642000,-150.0,0.000182,2]
[421876466,1778262642000,-197.84095358,0.000182,2]
[421876470,1778262642000,-189.0,0.000182,2]
[421876472,1778262642000,-197.84095358,0.000184,2]
[421876538,1778262642000,-500.0,0.00018773,2]
[421876499,1778262642000,-500.0,0.00018773,2]
[421876546,1778262642000,-500.0,0.00018773,2]
[421876606,1778262642000,-500.0,0.000188,2]
[421876615,1778262642000,-500.0,0.000188,2]
[421876613,1778262642000,-500.0,0.000188,2]
[421876608,1778262642000,-500.0,0.000188,2]
[421876622,1778262642000,-500.0,0.000188,2]
[421876617,1778262642000,-500.0,0.000188,2]
[421876624,1778262642000,-500.0,0.000188,2]
[421876620,1778262642000,-500.0,0.000188,2]
[421876626,1778262642000,-500.0,0.000188,2]
[421876611,1778262642000,-500.0,0.000188,2]
[421876601,1778262642000,-500.0,0.000188,2]
[421876631,1778262642000,-500.0,0.000188,2]
[421876644,1778262642000,-500.0,0.000188,2]
[421876646,1778262642000,-500.0,0.000188,2]
[421876649,1778262642000,-500.0,0.000188,2]
[421876635,1778262642000,-500.0,0.000188,2]
[421876640,1778262642000,-500.0,0.000188,2]
[421876638,1778262642000,-500.0,0.000188,2]
[421876651,1778262642000,-500.0,0.000188,2]
[421876642,1778262642000,-500.0,0.000188,2]
[421876653,1778262642000,-500.0,0.000188,2]
[421876553,1778262642000,-500.0,0.00018773,2]
[421876633,1778262642000,-500.0,0.000188,2]
[421876604,1778262642000,-500.0,0.000188,2]
[421876628,1778262642000,-500.0,0.000188,2]
[421876585,1778262642000,-500.0,0.000188,2]
[421876551,1778262642000,-500.0,0.00018773,2]
[421876588,1778262642000,-500.0,0.000188,2]
[421876548,1778262642000,-500.0,0.00018773,2]
[421876543,1778262642000,-500.0,0.00018773,2]
[421876556,1778262642000,-86100.52458418,0.000188,2]
[421876560,1778262642000,-151.0,0.000188,2]
[421876563,1778262642000,-151.0,0.000188,2]
[421876565,1778262642000,-151.0,0.000188,2]
[421876567,1778262642000,-151.0,0.000188,2]
[421876574,1778262642000,-151.0,0.000188,2]
[421876570,1778262642000,-151.0,0.000188,2]
[421876558,1778262642000,-151.0,0.000188,2]
[421876576,1778262642000,-151.0,0.000188,2]
[421876572,1778262642000,-151.0,0.000188,2]
[421876578,1778262642000,-151.0,0.000188,2]
[421876580,1778262642000,-500.0,0.000188,2]
[421876592,1778262642000,-500.0,0.000188,2]
[421876597,1778262642000,-500.0,0.000188,2]
[421876594,1778262642000,-500.0,0.000188,2]
[421876583,1778262642000,-500.0,0.000188,2]
[421876590,1778262642000,-500.0,0.000188,2]
[421876599,1778262642000,-500.0,0.000188,2]
[421876732,1778262643000,-500.0,0.000188,2]
[421876731,1778262643000,-500.0,0.000188,2]
[421876728,1778262643000,-500.0,0.000188,2]
[421876730,1778262643000,-500.0,0.000188,2]
[421876738,1778262643000,-500.0,0.000188,2]
[421876735,1778262643000,-500.0,0.000188,2]
[421876734,1778262643000,-500.0,0.000188,2]
[421876736,1778262643000,-500.0,0.000188,2]
[421876733,1778262643000,-500.0,0.000188,2]
[421876740,1778262643000,-500.0,0.000188,2]
[421876729,1778262643000,-151.0,0.000188,2]
[421876742,1778262643000,-500.0,0.000188,2]
[421876748,1778262643000,-500.0,0.000188,2]
[421876756,1778262643000,-500.0,0.000188,2]
[421876754,1778262643000,-500.0,0.000188,2]
[421876758,1778262643000,-500.0,0.000188,2]
[421876760,1778262643000,-500.0,0.000188,2]
[421876744,1778262643000,-500.0,0.000188,2]
[421876762,1778262643000,-500.0,0.000188,2]
[421876750,1778262643000,-500.0,0.000188,2]
[421876764,1778262643000,-500.0,0.000188,2]
[421876746,1778262643000,-500.0,0.000188,2]
[421876766,1778262643000,-500.0,0.000188,2]
[421876726,1778262643000,-500.0,0.000188,2]
[421876752,1778262643000,-500.0,0.000188,2]
[421876714,1778262643000,-500.0,0.000188,2]
[421876677,1778262643000,-500.0,0.000188,2]
[421876712,1778262643000,-151.0,0.000188,2]
[421876776,1778262643000,-500.0,0.000188,2]
[421876655,1778262643000,-500.0,0.000188,2]
[421876660,1778262643000,-500.0,0.000188,2]
[421876669,1778262643000,-500.0,0.000188,2]
[421876675,1778262643000,-500.0,0.000188,2]
[421876667,1778262643000,-500.0,0.000188,2]
[421876658,1778262643000,-500.0,0.000188,2]
[421876671,1778262643000,-500.0,0.000188,2]
[421876680,1778262643000,-500.0,0.000188,2]
[421876664,1778262643000,-500.0,0.000188,2]
[421876673,1778262643000,-500.0,0.000188,2]
[421876682,1778262643000,-500.0,0.000188,2]
[421876662,1778262643000,-500.0,0.000188,2]
[421876691,1778262643000,-500.0,0.000188,2]
[421876693,1778262643000,-500.0,0.000188,2]
[421876698,1778262643000,-500.0,0.000188,2]
[421876696,1778262643000,-500.0,0.000188,2]
[421876684,1778262643000,-500.0,0.000188,2]
[421876700,1778262643000,-500.0,0.000188,2]
[421876689,1778262643000,-500.0,0.000188,2]
[421876687,1778262643000,-500.0,0.000188,2]
[421876702,1778262643000,-500.0,0.000188,2]
[421876705,1778262643000,-500.0,0.000188,2]
[421876707,1778262643000,-500.0,0.000188,2]
[421876710,1778262643000,-500.0,0.000188,2]
[421876716,1778262643000,-500.0,0.000188,2]
[421876780,1778262643000,-500.0,0.000188,2]
[421876719,1778262643000,-500.0,0.000188,2]
[421876778,1778262643000,-500.0,0.000188,2]
[421876835,1778262643000,-160.93281423,0.00019178,7]
[421876837,1778262643000,-500.0,0.00019178,2]
[421876839,1778262643000,-500.0,0.00019178,2]
[421876841,1778262643000,-500.0,0.00019178,2]
[421876844,1778262643000,-500.0,0.00019178,2]
[421876856,1778262643000,-500.0,0.00019178,2]
[421876854,1778262643000,-500.0,0.00019178,2]
[421876846,1778262643000,-500.0,0.00019178,2]
[421876850,1778262643000,-500.0,0.00019178,2]
[421876858,1778262643000,-500.0,0.00019178,2]
[421876848,1778262643000,-500.0,0.00019178,2]
[421876852,1778262643000,-500.0,0.00019178,2]
[421876861,1778262643000,-500.0,0.00019178,2]
[421876863,1778262643000,-500.0,0.00019178,2]
[421876865,1778262643000,-151.0,0.00019178,2]
[421876867,1778262643000,-1252.0,0.00019238,2]
[421876880,1778262643000,-1000.0,0.00019321,2]
[421876878,1778262643000,-500.0,0.00019321,2]
[421876869,1778262643000,-670.69,0.000193,2]
[421876882,1778262643000,-250.0,0.00019321,2]
[421876875,1778262643000,-501.50619138,0.00019321,2]
[421876876,1778262643000,-501.03623617,0.00019321,2]
[421876873,1778262643000,-754.5472085,0.00019321,2]
[421876871,1778262643000,-500.0,0.0001932,2]
[421876774,1778262643000,-500.0,0.000188,2]
[421876820,1778262643000,-151.0,0.000188,2]
[421876831,1778262643000,-323.0,0.00019,2]
[421876860,1778262643000,-500.0,0.00019178,2]
[421876884,1778262643000,-1000.0,0.00019321,2]
[421876770,1778262643000,-500.0,0.000188,2]
[421876819,1778262643000,-151.0,0.000188,2]
[421876782,1778262643000,-500.0,0.000188,2]
[421876772,1778262643000,-500.0,0.000188,2]
[421876768,1778262643000,-500.0,0.000188,2]
[421876789,1778262643000,-151.0,0.000188,2]
[421876785,1778262643000,-500.0,0.000188,2]
[421876787,1778262643000,-262.036948,0.000188,2]
[421876797,1778262643000,-151.0,0.000188,2]
[421876795,1778262643000,-151.0,0.000188,2]
[421876791,1778262643000,-151.0,0.000188,2]
[421876801,1778262643000,-151.0,0.000188,2]
[421876799,1778262643000,-175.241184,0.000188,2]
[421876793,1778262643000,-151.0,0.000188,2]
[421876829,1778262643000,-216.73146401,0.00019,2]
[421876833,1778262643000,-3000.0,0.00019178,2]
[421876810,1778262643000,-151.0,0.000188,2]
[421876822,1778262643000,-3040.0,0.00018897,2]
[421876816,1778262643000,-151.0,0.000188,2]
[421876827,1778262643000,-216.58,0.00018999,2]
[421876812,1778262643000,-151.0,0.000188,2]
[421876825,1778262643000,-4113.08830698,0.00018975,2]
[421876803,1778262643000,-151.0,0.000188,2]
[421876805,1778262643000,-151.0,0.000188,2]
[421876807,1778262643000,-151.0,0.000188,2]
[421876809,1778262643000,-151.0,0.000188,2]
[421876814,1778262643000,-151.0,0.000188,2]
[421876939,1778262644000,-500.0,0.00019702,2]
[421876947,1778262644000,-1000.0,0.000199,7]
[421876945,1778262644000,-1500.0,0.00019868,2]
[421876943,1778262644000,-1500.0,0.00019868,2]
[421876936,1778262644000,-500.0,0.00019702,2]
[421876934,1778262644000,-500.0,0.00019702,2]
[421876938,1778262644000,-500.0,0.00019702,2]
[421876933,1778262644000,-500.0,0.00019702,2]
[421876941,1778262644000,-255.57966803,0.00019702,2]
[421876932,1778262644000,-500.0,0.00019702,2]
[421876956,1778262644000,-208.23,0.0002,14]
[421876942,1778262644000,-179.71,0.00019797,2]
[421876944,1778262644000,-400.0,0.00019868,2]
[421876961,1778262644000,-400.0,0.0002,2]
[421876954,1778262644000,-151.0,0.0001995,2]
[421876946,1778262644000,-612.63145298,0.00019868,2]
[421876950,1778262644000,-151.0,0.00019947,2]
[421876948,1778262644000,-1000.0,0.000199,7]
[421876949,1778262644000,-250.0,0.00019926,2]
[421876953,1778262644000,-151.0,0.0001995,2]
[421876951,1778262644000,-180805.82813382,0.0001995,15]
[421876952,1778262644000,-2559.996707,0.0001995,15]
[421876957,1778262644000,-323.0,0.0002,2]
[421876959,1778262644000,-1768.0,0.0002,2]
[421876960,1778262644000,-154.0,0.0002,2]
[421876940,1778262644000,-500.0,0.00019702,2]
[421876955,1778262644000,-1109.21310872,0.0001995,2]
[421876935,1778262644000,-500.0,0.00019702,2]
[421876888,1778262644000,-500.0,0.00019321,2]
[421876931,1778262644000,-500.0,0.00019702,2]
[421876886,1778262644000,-501.40700187,0.00019321,2]
[421876890,1778262644000,-502.60214621,0.00019321,2]
[421876892,1778262644000,-1002.49800134,0.00019321,2]
[421876906,1778262644000,-501.56590806,0.00019321,2]
[421876904,1778262644000,-1000.0,0.00019321,2]
[421876908,1778262644000,-150.0,0.00019378,2]
[421876910,1778262644000,-2000.0,0.00019476,2]
[421876894,1778262644000,-1000.0,0.00019321,2]
[421876896,1778262644000,-676.75690271,0.00019321,2]
[421876898,1778262644000,-570.25291027,0.00019321,2]
[421876900,1778262644000,-374.65026311,0.00019321,2]
[421876911,1778262644000,-1407.74053889,0.00019513,2]
[421876902,1778262644000,-502.01972561,0.00019321,2]
[421876913,1778262644000,-8861.06946537,0.0001955,2]
[421876912,1778262644000,-6360.97468111,0.00019513,2]
[421876923,1778262644000,-500.0,0.00019702,2]
[421876925,1778262644000,-500.0,0.00019702,2]
[421876929,1778262644000,-500.0,0.00019702,2]
[421876928,1778262644000,-500.0,0.00019702,2]
[421876914,1778262644000,-156.25362249,0.00019692,2]
[421876918,1778262644000,-500.0,0.00019702,2]
[421876915,1778262644000,-500.0,0.00019702,2]
[421876921,1778262644000,-500.0,0.00019702,2]
[421876919,1778262644000,-500.0,0.00019702,2]
[421876930,1778262644000,-500.0,0.00019702,2]
[421876916,1778262644000,-500.0,0.00019702,2]
[421876917,1778262644000,-500.0,0.00019702,2]
[421876937,1778262644000,-500.0,0.00019702,2]
[421876966,1778262644000,-155.0,0.00020297,2]
[421876964,1778262644000,-150.0,0.0002,20]
[421876958,1778262644000,-177.0,0.0002,2]
[421876995,1778262644000,-4911.45,0.00020548,2]
[421877002,1778262644000,-153.743081,0.00020548,2]
[421876998,1778262644000,-4911.45,0.00020548,2]
[421876999,1778262644000,-4911.45,0.00020548,2]
[421877001,1778262644000,-151.0,0.00020548,2]
[421877003,1778262644000,-177.214072,0.00020548,2]
[421876997,1778262644000,-4911.45,0.00020548,2]
[421877000,1778262644000,-4911.45,0.00020548,2]
[421877006,1778262644000,-151.0,0.00020548,2]
[421877016,1778262644000,-151.0,0.00020548,2]
[421877007,1778262644000,-151.0,0.00020548,2]
[421877008,1778262644000,-151.0,0.00020548,2]
[421877015,1778262644000,-151.0,0.00020548,2]
[421877009,1778262644000,-151.0,0.00020548,2]
[421877014,1778262644000,-151.0,0.00020548,2]
[421877013,1778262644000,-151.0,0.00020548,2]
[421877010,1778262644000,-151.0,0.00020548,2]
[421877011,1778262644000,-151.0,0.00020548,2]
[421877012,1778262644000,-151.0,0.00020548,2]
[421877017,1778262644000,-151.0,0.00020548,2]
[421877019,1778262644000,-152.391066,0.00020548,2]
[421877018,1778262644000,-151.0,0.00020548,2]
[421877022,1778262644000,-162.64,0.00020645,2]
[421877023,1778262644000,-216.58,0.00020726,2]
[421877020,1778262644000,-445.42301396,0.00020598,2]
[421877021,1778262644000,-156.52,0.0002061,2]
[421876965,1778262644000,-242.15909246,0.00020058,2]
[421876996,1778262644000,-4911.45,0.00020548,2]
[421876993,1778262644000,-4911.45,0.00020548,2]
[421877005,1778262644000,-151.0,0.00020548,2]
[421877004,1778262644000,-151.0,0.00020548,2]
[421876962,1778262644000,-544.0,0.0002,2]
[421876963,1778262644000,-3166.0,0.0002,2]
[421876968,1778262644000,-1731.9,0.00020381,2]
[421876994,1778262644000,-4911.45,0.00020548,2]
[421876981,1778262644000,-4911.45,0.00020548,2]
[421876980,1778262644000,-4911.45,0.00020548,2]
[421876970,1778262644000,-6360.97468111,0.00020382,2]
[421876969,1778262644000,-1407.74053889,0.00020382,2]
[421876971,1778262644000,-624.0,0.00020397,2]
[421876972,1778262644000,-925.0,0.00020397,2]
[421876973,1778262644000,-1352.0,0.00020397,2]
[421876974,1778262644000,-1268.0,0.00020397,2]
[421876975,1778262644000,-929.0,0.00020397,2]
[421876979,1778262644000,-4911.45,0.00020548,2]
[421876967,1778262644000,-600.0,0.00020356,7]
[421876978,1778262644000,-500.0,0.00020547,2]
[421876976,1778262644000,-2000.0,0.00020416,2]
[421876988,1778262644000,-4911.45,0.00020548,2]
[421876992,1778262644000,-4911.45,0.00020548,2]
[421876991,1778262644000,-4911.45,0.00020548,2]
[421876983,1778262644000,-4911.45,0.00020548,2]
[421876989,1778262644000,-4911.45,0.00020548,2]
[421876990,1778262644000,-4911.45,0.00020548,2]
[421876984,1778262644000,-4911.45,0.00020548,2]
[421876986,1778262644000,-4911.45,0.00020548,2]
[421876987,1778262644000,-4911.45,0.00020548,2]
[421876982,1778262644000,-4911.45,0.00020548,2]
[421876977,1778262644000,-350.0,0.00020474,2]
[421876985,1778262644000,-4911.45,0.00020548,2]
[421877043,1778262645000,-2000.0,0.00021246,2]
[421877038,1778262645000,-1090.65279516,0.00021203,5]
[421877044,1778262645000,-1407.74053889,0.00021251,2]
[421877039,1778262645000,-39401.69669405,0.00021218,2]
[421877034,1778262645000,-544.0,0.00021,2]
[421877037,1778262645000,-157.09018013,0.00021059,2]
[421877031,1778262645000,-177.0,0.00021,2]
[421877036,1778262645000,-2997.35307483,0.00021041,2]
[421877035,1778262645000,-452.47332856,0.00021022,2]
[421877033,1778262645000,-154.0,0.00021,2]
[421877028,1778262645000,-323.0,0.00021,2]
[421877042,1778262645000,-1545.0,0.00021227,7]
[421877041,1778262645000,-3275.0,0.00021227,7]
[421877040,1778262645000,-563.09464811,0.00021218,2]
[421877030,1778262645000,-598.15,0.00021,7]
[421877029,1778262645000,-500.0,0.00021,7]
[421877026,1778262645000,-314.0,0.000208,2]
[421877027,1778262645000,-1798.0691939,0.00020964,2]
[421877024,1778262645000,-2129.0,0.00020772,2]
[421877025,1778262645000,-168.36,0.000208,2]
[421877054,1778262645000,-158.600884,0.00021918,2]
[421877032,1778262645000,-1768.0,0.00021,2]
[421877055,1778262645000,-158.600884,0.00021918,2]
[421877070,1778262645000,-187.0,0.00022,2]
[421877048,1778262645000,-179.71,0.00021597,2]
[421877071,1778262645000,-1188.78925906,0.00022,2]
[421877065,1778262645000,-1768.0,0.00022,2]
[421877063,1778262645000,-323.0,0.00022,2]
[421877064,1778262645000,-177.0,0.00022,2]
[421877066,1778262645000,-154.0,0.00022,2]
[421877047,1778262645000,-1000.0,0.000215,2]
[421877067,1778262645000,-450.0,0.00022,2]
[421877060,1778262645000,-158.600884,0.00021918,2]
[421877059,1778262645000,-158.600884,0.00021918,2]
[421877068,1778262645000,-544.0,0.00022,2]
[421877058,1778262645000,-158.600884,0.00021918,2]
[421877069,1778262645000,-1378.31960288,0.00022,2]
[421877062,1778262645000,-1000.0,0.00021918,5]
[421877057,1778262645000,-158.600884,0.00021918,2]
[421877056,1778262645000,-158.600884,0.00021918,2]
[421877052,1778262645000,-167.43,0.00021899,2]
[421877053,1778262645000,-5000.0,0.00021918,2]
[421877049,1778262645000,-308.0,0.000216,2]
[421877046,1778262645000,-302.71750127,0.00021427,2]
[421877045,1778262645000,-6360.97468111,0.00021251,2]
[421877050,1778262645000,-167.41,0.00021849,2]
[421877051,1778262645000,-167.43,0.00021897,2]
[421877061,1778262645000,-158.600884,0.00021918,2]
[421877087,1778262646000,-251.14,0.00022123,2]
[421877085,1778262646000,-1407.74053889,0.0002212,2]
[421877084,1778262646000,-251.14,0.00022102,2]
[421877083,1778262646000,-251.14,0.00022015,2]
[421877078,1778262646000,-500.0,0.00020356,7]
[421877079,1778262646000,-417.0,0.00020397,2]
[421877082,1778262646000,-575.66516291,0.00022,2]
[421877086,1778262646000,-6360.97468111,0.0002212,2]
[421877076,1778262646000,-223.04056798,0.000149,2]
[421877077,1778262646000,-417.0,0.00017397,2]
[421877081,1778262646000,-200.48404017,0.00022,2]
[421877089,1778262646000,-500.0,0.00022219,2]
[421877080,1778262646000,-600.0,0.00021452,7]
[421877090,1778262646000,-500.0,0.00022219,2]
[421877088,1778262646000,-187.0,0.00022192,7]
[421877100,1778262646000,-6000.00001399,0.0002222,2]
[421877097,1778262646000,-7974.40064715,0.0002222,2]
[421877101,1778262646000,-2874.07091588,0.0002222,2]
[421877099,1778262646000,-56439.11395084,0.0002222,2]
[421877098,1778262646000,-4374.04848253,0.0002222,2]
[421877094,1778262646000,-1730.35570319,0.0002222,2]
[421877092,1778262646000,-500.0,0.00022219,2]
[421877095,1778262646000,-1422.1592,0.0002222,2]
[421877096,1778262646000,-465.11250787,0.0002222,2]
[421877093,1778262646000,-206.48407503,0.00022219,2]
[421877091,1778262646000,-500.0,0.00022219,2]
[421877129,1778262743000,-152.0,0.00014569,7]
[421877127,1778262743000,-202.85983324,0.00014264,2]
[421877126,1778262743000,-2500.0,0.00014199,2]
[421877128,1778262743000,-152.0,0.00014569,7]
[421877125,1778262743000,-152.0,0.00014175,2]
[421877124,1778262743000,-672855.3948,0.00014099,2]
[421877130,1778262760000,153.19,9.625e-05,2]
[421877131,1778262834000,161.406684,0.00024979,120]
[421877133,1778262921000,237.0,0.0002215,120]
[421877134,1778262923000,237.0,0.00023257,120]
[421877135,1778262925000,237.0,0.0002442,120]
[421877136,1778262926000,237.0,0.00025641,120]
[421877137,1778262928000,237.0,0.00026923,120]
[421877138,1778262930000,237.0,0.0002827,120]
[421877139,1778262931000,237.0,0.00029683,120]
[421877140,1778263208000,179.0,0.00022187,120]
[421877141,1778263209000,179.0,0.00023297,120]
[421877142,1778263211000,179.0,0.00024462,120]
[421877143,1778263213000,179.0,0.00025685,120]
[421877144,1778263235000,152.0,0.00012327,2]
[421877145,1778263320000,282.98012767,0.0002,120]
[421877146,1778263358000,583.77426698,0.00011,2]
[421877150,1778263419000,1576.53024729,9.9e-05,14]
[421877151,1778263438000,152.0,0.00012325,2]
[421877152,1778263450000,500.0,0.00013968,2]
[421877154,1778263466000,166.66,0.00013941,2]
[421877153,1778263466000,166.66,0.00013699,2]
[421877155,1778263482000,270052.71434815,0.00012,2]
[421877158,1778263502000,150.0,0.00013916,2]
[421877157,1778263502000,150.0,0.00013702,2]
[421877156,1778263502000,150.0,0.00013488,2]
[421877161,1778263583000,304.38,0.00013999,2]
[421877162,1778263634000,250.0,0.00014,2]
[421877163,1778263677000,157.72,0.00013773,2]
[421877164,1778263678000,2000.0,0.00013773,2]
[421877166,1778263710000,152.0,0.00012326,2]
[421877178,1778263832000,150.0,0.0001377,2]
[421877175,1778263832000,-301.9055,0.00014098,2]
[421877177,1778263832000,-12133.12690318,0.00014099,2]
[421877176,1778263832000,-45360.4111,0.00014099,2]
[421877174,1778263832000,-300.0,0.00014098,2]
[421877171,1778263832000,-250.0,0.00014098,2]
[421877173,1778263832000,-150.0,0.00014098,2]
[421877172,1778263832000,-2317.31426788,0.00014098,2]
[421877170,1778263832000,-1000.0,0.00014098,2]
[421877185,1778263840000,-935.38782525,0.00014099,2]
[421877187,1778263840000,-606.6000014,0.00014099,2]
[421877188,1778263840000,-21042.40124996,0.00014099,2]
[421877186,1778263840000,-21854.75,0.00014099,2]
[421877202,1778263842000,-189.83929851,0.00014298,2]
[421877191,1778263842000,-250.0,0.00014105,2]
[421877190,1778263842000,-13377.31452021,0.00014099,2]
[421877192,1778263842000,-150.0,0.0001413,2]
[421877194,1778263842000,-166.66,0.00014182,2]
[421877196,1778263842000,-166.66,0.00014186,2]
[421877200,1778263842000,-500.0,0.00014298,2]
[421877204,1778263842000,-182.76,0.000143,2]
[421877208,1778263842000,-5162.7751818,0.00014485,2]
[421877216,1778263842000,-157.0,0.00014702,2]
[421877207,1778263842000,-166.66,0.00014424,2]
[421877211,1778263842000,-151.0,0.00014549,2]
[421877198,1778263842000,-2000.0,0.00014199,2]
[421877215,1778263842000,-166.66,0.00014666,2]
[421877214,1778263842000,-152.0,0.00014585,7]
[421877222,1778263842000,-1027.1,0.00014852,2]
[421877220,1778263842000,-380.52932165,0.00014852,2]
[421877218,1778263842000,-150.0,0.00014772,2]
[421877217,1778263842000,-220.0,0.00014702,2]
[421877219,1778263842000,-2245.54273264,0.00014852,2]
[421877221,1778263842000,-1989.36106014,0.00014852,2]
[421877210,1778263842000,-151.0,0.00014549,2]
[421877213,1778263842000,-152.0,0.00014569,7]
[421877209,1778263842000,-150.99,0.00014504,2]
[421877206,1778263842000,-150.0,0.00014344,2]
[421877212,1778263842000,-150.0,0.00014558,2]
[421877226,1778263843000,-448.01282351,0.00014852,2]
[421877230,1778263846000,-5000.0,0.000149,2]
[421877227,1778263846000,-63.50111379,0.00014852,2]
[421877228,1778263846000,-6154.04705173,0.00014883,2]
[421877229,1778263846000,-4936.7156,0.000149,2]
[421877234,1778263846000,-1127.26325659,0.000149,2]
[421877231,1778263846000,-6928.6353697,0.000149,2]
[421877233,1778263846000,-539.64580154,0.000149,2]
[421877232,1778263846000,-178.56859876,0.000149,2]
[421877243,1778263847000,-6154.04705173,0.00014914,2]
[421877244,1778263847000,-6928.63536967,0.00014926,2]
[421877241,1778263847000,-526.64147424,0.00014913,2]
[421877238,1778263847000,-526.64147424,0.00014913,2]
[421877240,1778263847000,-526.64147424,0.00014913,2]
[421877247,1778263847000,-6154.04705173,0.00014976,2]
[421877239,1778263847000,-526.64147424,0.00014913,2]
[421877245,1778263847000,-6154.04705173,0.00014945,2]
[421877237,1778263847000,-290.54379046,0.00014908,2]
[421877236,1778263847000,-411.58547044,0.000149,2]
[421877235,1778263847000,-1372.73674341,0.000149,2]
[421877242,1778263847000,-500.0,0.00014913,2]
[421877246,1778263847000,-6928.63536967,0.00014952,2]
[421877248,1778263847000,-6928.63536967,0.00014977,2]
[421877257,1778263847000,-150.0,0.00014999,2]
[421877260,1778263847000,-666.0,0.00014999,2]
[421877263,1778263847000,-3377.503,0.00015,2]
[421877261,1778263847000,-163.0,0.00015,2]
[421877255,1778263847000,-179.21945981,0.0001499,2]
[421877256,1778263847000,-500.0,0.00014999,2]
[421877259,1778263847000,-300.0,0.00014999,2]
[421877258,1778263847000,-300.0,0.00014999,2]
[421877250,1778263847000,-1135.92031942,0.00014988,2]
[421877251,1778263847000,-16493.49,0.0001499,2]
[421877253,1778263847000,-179.21945981,0.0001499,2]
[421877249,1778263847000,-150.0,0.00014986,2]
[421877262,1778263847000,-248267.08584116,0.00015,2]
[421877252,1778263847000,-16493.49,0.0001499,2]
[421877264,1778263848000,152.0,0.00011918,2]